bitfinex/quotes_SOLUSD_20220128
["timestamp","ask_amount","ask_price","bid_price","bid_amount"]
[1643391175661,6.0,91.115,91.041,6.0]
[1643391175863,41.02120591,91.114,91.041,6.0]
[1643391176762,40.77120591,91.114,91.042,0.25]
[1643391177363,16.477,91.14,91.042,6.25]
[1643391177765,16.477,91.14,91.043,109.1]
[1643391177975,16.473,91.16,91.05,16.474]
[1643391178170,16.473,91.16,91.053,6.0]
[1643391178372,38.95543153,91.149,91.06,6.0]
[1643391178775,6.0,91.139,91.06,6.0]
[1643391178973,38.95543153,91.149,91.053,6.0]
[1643391179576,6.0,91.139,91.053,6.0]
[1643391179775,0.25,91.138,91.053,6.0]
[1643391179975,16.478,91.13,91.054,6.0]
[1643391180177,48.42665026,91.129,91.054,6.0]
[1643391180581,0.25,91.128,91.054,6.0]
[1643391181909,0.25,91.128,91.053,6.0]
[1643391183116,0.25,91.128,91.054,6.0]
[1643391183711,0.25,91.128,91.043,23.4874]
[1643391183712,2.95669142,91.127,91.053,6.0]
[1643391183915,6.0,91.117,91.03,13.58]
[1643391184112,6.0,91.117,91.04,6.0]
[1643391184312,3.20669142,91.116,91.04,6.0]
[1643391184513,40.90356703,91.115,91.04,6.0]
[1643391184717,43.86025845,91.115,91.04,6.0]
[1643391184913,0.25,91.114,91.04,6.0]
[1643391185113,16.482,91.11,91.04,6.0]
[1643391185417,0.25,91.109,91.04,6.0]
[1643391185615,6.0,91.1,91.013,48.209]
[1643391185813,6.0,91.1,90.98,13.58]
[1643391185814,46.96438555,91.099,90.98,13.58]
[1643391186020,115.1,91.098,90.971,47.5684]
[1643391186216,6.0,91.089,90.971,47.5684]
[1643391186415,6.0,91.088,90.972,109.1]
[1643391186713,6.0,91.087,90.972,109.1]
[1643391186915,17.94900644,91.087,90.972,109.1]
[1643391187114,48.15494597,91.069,90.972,109.1]
[1643391187315,0.25,91.068,90.982,6.0]
[1643391188316,0.25,91.068,90.983,0.25]
[1643391188514,0.25,91.068,90.99,6.0]
[1643391189215,0.25,91.068,90.982,6.0]
[1643391189415,48.15494597,91.069,90.982,6.0]
[1643391191418,0.25,91.068,90.982,6.0]
[1643391191819,6.0,91.059,90.981,6.0]
[1643391192018,6.0,91.058,90.972,0.25]
[1643391192216,6.25,91.058,90.972,0.25]
[1643391192619,6.25,91.058,90.971,47.5684]
[1643391192816,0.25,91.058,90.971,47.5684]
[1643391193019,36.65911781,91.055,90.971,47.5684]
[1643391193222,36.65911781,91.055,90.981,6.0]
[1643391193417,0.25,91.054,90.981,6.0]
[1643391193619,0.25,91.054,90.982,6.0]
[1643391193818,0.25,91.054,90.983,0.25]
[1643391194023,11.69900644,91.086,90.983,0.25]
[1643391194219,13.58,91.11,90.983,0.25]
[1643391194518,1.49148275,91.133,90.983,0.25]
[1643391194519,20.94168222,91.122,90.983,0.25]
[1643391194720,1.49148275,91.147,90.989,1.51813512]
[1643391194920,40.51617341,91.137,91.0,13.58]
[1643391195119,2.95669142,91.154,91.01,19.58]
[1643391195323,1.49148275,91.161,91.02,13.58]
[1643391195520,1.49148275,91.166,91.03,6.0]
[1643391195724,1.49148275,91.188,91.05,169.7]
[1643391195921,1.49148275,91.202,91.06,13.58]
[1643391196121,38.96275389,91.201,91.074,0.31655329]
[1643391196321,38.96275389,91.201,91.11,16.459]
[1643391196523,38.96275389,91.201,91.12,19.58]
[1643391196923,38.96275389,91.201,91.121,0.25]
[1643391197120,38.96275389,91.201,91.121,6.25]
[1643391197322,38.96275389,91.201,91.121,0.25]
[1643391197922,38.96275389,91.201,91.12,19.58]
[1643391198122,38.96275389,91.201,91.121,0.25]
[1643391199433,0.25,91.2,91.121,0.25]
[1643391199827,0.25,91.2,91.121,109.35]
[1643391200031,0.25,91.2,91.131,6.0]
[1643391200630,38.96275389,91.201,91.131,6.0]
[1643391200830,2.95669142,91.225,91.131,6.0]
[1643391200831,1.49148275,91.221,91.132,0.25]
[1643391201130,1.49148275,91.223,91.132,109.35]
[1643391201332,1.49148275,91.234,91.132,109.35]
[1643391201527,6.0,91.213,91.143,109.1]
[1643391201927,34.93642965,91.212,91.153,6.0]
[1643391202529,0.25,91.211,91.14,6.0]
[1643391202729,0.25,91.211,91.13,6.0]
[1643391202929,0.25,91.211,91.141,0.25]
[1643391203130,0.25,91.211,91.13,6.0]
[1643391203333,16.463,91.21,91.131,0.25]
[1643391203735,0.25,91.209,91.13,6.0]
[1643391204130,0.25,91.209,91.12,6.0]
[1643391205432,0.25,91.209,91.121,0.25]
[1643391207435,0.25,91.211,91.121,0.25]
[1643391207864,6.0,91.23,91.13,16.459]
[1643391208063,1.49148275,91.237,91.14,6.0]
[1643391208263,0.04351504,91.25,91.15,13.58]
[1643391208465,0.04351504,91.25,91.151,109.1]
[1643391208664,0.04351504,91.25,91.16,6.0]
[1643391208862,49.06720368,91.245,91.161,6.25]
[1643391209062,49.06720368,91.245,91.162,109.1]
[1643391209263,49.06720368,91.245,91.162,109.35]
[1643391209264,0.25,91.244,91.162,109.35]
[1643391209465,0.25,91.244,91.172,6.0]
[1643391209866,0.25,91.244,91.173,0.25]
[1643391210863,0.25,91.244,91.18,6.0]
[1643391211264,0.25,91.244,91.181,0.25]
[1643391212066,0.25,91.244,91.181,6.0]
[1643391212267,0.25,91.244,91.18,6.0]
[1643391212268,2.95669142,91.243,91.18,6.0]
[1643391212670,0.25,91.242,91.16,6.0]
[1643391213068,2.95669142,91.241,91.16,6.0]
[1643391213269,16.708,91.24,91.16,6.0]
[1643391213570,0.25,91.24,91.16,6.0]
[1643391213768,0.25,91.24,91.161,0.25]
[1643391214471,0.25,91.24,91.17,16.452]
[1643391214668,0.25,91.244,91.17,22.452]
[1643391214869,0.25,91.244,91.171,0.25]
[1643391215069,0.25,91.244,91.17,22.452]
[1643391215269,0.25,91.244,91.171,0.25]
[1643391216469,49.06720368,91.245,91.171,6.25]
[1643391216670,49.06720368,91.245,91.18,6.0]
[1643391216872,49.06720368,91.245,91.181,0.25]
[1643391217772,0.25,91.244,91.181,0.25]
[1643391217971,49.06720368,91.245,91.181,0.25]
[1643391218974,49.06720368,91.245,91.181,109.35]
[1643391219377,0.04351504,91.25,91.191,6.0]
[1643391219775,0.04351504,91.25,91.192,0.25]
[1643391221376,0.04351504,91.25,91.2,6.0]
[1643391221777,0.04351504,91.25,91.201,0.25]
[1643391222179,0.04351504,91.25,91.2,6.0]
[1643391222680,0.04351504,91.25,91.201,6.0]
[1643391222884,0.04351504,91.25,91.2,6.0]
[1643391223083,0.04351504,91.25,91.201,6.0]
[1643391225992,0.04351504,91.25,91.173,48.2134]
[1643391226195,1.49148275,91.243,91.15,13.58]
[1643391226424,1.49148275,91.236,91.135,109.1]
[1643391226627,39.02030719,91.235,91.13,13.58]
[1643391226827,0.25,91.234,91.14,16.457]
[1643391227435,0.25,91.234,91.161,6.0]
[1643391227837,0.25,91.234,91.162,0.25]
[1643391228036,0.25,91.234,91.165,6.0]
[1643391229037,1.74148275,91.234,91.165,6.0]
[1643391229436,1.74148275,91.234,91.17,6.0]
[1643391230042,1.74148275,91.234,91.161,6.0]
[1643391230445,1.49148275,91.231,91.15,16.455]
[1643391230639,1.49148275,91.231,91.161,6.0]
[1643391230839,1.49148275,91.229,91.161,6.0]
[1643391231342,0.25,91.228,91.14,13.58]
[1643391231540,1.49148275,91.223,91.14,13.58]
[1643391231741,1.49148275,91.223,91.15,6.0]
[1643391231940,1.49148275,91.218,91.15,6.0]
[1643391232340,0.25,91.217,91.15,6.0]
[1643391233139,1.74148275,91.217,91.15,6.0]
[1643391233844,0.25,91.217,91.15,6.0]
[1643391234241,0.25,91.218,91.15,6.0]
[1643391234441,1.49148275,91.217,91.15,6.0]
[1643391234642,0.25,91.218,91.15,6.0]
[1643391235842,0.25,91.22,91.15,6.0]
[1643391236042,0.25,91.22,91.151,6.0]
[1643391236942,0.25,91.22,91.152,0.25]
[1643391237145,1.49148275,91.221,91.161,109.1]
[1643391237445,1.49148275,91.231,91.171,6.0]
[1643391237668,1.49148275,91.232,91.171,6.0]
[1643391237869,1.49148275,91.233,91.172,0.25]
[1643391238268,0.25,91.232,91.172,0.25]
[1643391238469,0.25,91.232,91.171,6.0]
[1643391238668,0.25,91.232,91.172,0.25]
[1643391238869,0.25,91.234,91.172,0.25]
[1643391239071,0.25,91.234,91.171,6.0]
[1643391239268,1.74148275,91.234,91.171,6.0]
[1643391239870,44.04567675,91.234,91.172,0.25]
[1643391240473,45.5371595,91.234,91.17,6.0]
[1643391240671,45.5371595,91.234,91.15,13.58]
[1643391240872,1.49148275,91.232,91.151,0.25]
[1643391241072,1.49148275,91.232,91.15,13.58]
[1643391241073,1.49148275,91.224,91.15,13.58]
[1643391241278,0.25,91.223,91.141,6.0]
[1643391241475,1.49148275,91.21,91.12,13.58]
[1643391241675,41.2194082,91.205,91.12,13.58]
[1643391241876,1.49148275,91.203,91.13,6.0]
[1643391242073,41.2194082,91.205,91.13,6.0]
[1643391242074,1.49148275,91.202,91.13,6.0]
[1643391242275,2.95669142,91.202,91.13,6.0]
[1643391242474,2.95669142,91.202,91.13,16.459]
[1643391242675,1.49148275,91.204,91.14,6.0]
[1643391242877,41.2194082,91.205,91.141,0.25]
[1643391243075,41.2194082,91.205,91.131,0.25]
[1643391245277,0.25,91.204,91.131,0.25]
[1643391246277,0.25,91.207,91.131,0.25]
[1643391246477,0.25,91.207,91.14,6.0]
[1643391246880,0.25,91.225,91.141,109.35]
[1643391247078,0.25,91.225,91.141,115.35]
[1643391247279,39.69136718,91.225,91.141,115.35]
[1643391247681,39.69136718,91.225,91.15,6.0]
[1643391247879,39.44136718,91.225,91.151,6.25]
[1643391248284,1.49148275,91.235,91.151,6.25]
[1643391248482,1.49148275,91.236,91.151,6.25]
[1643391248882,1.49148275,91.239,91.152,109.1]
[1643391249084,1.49148275,91.239,91.162,6.0]
[1643391249286,39.16989088,91.244,91.14,13.58]
[1643391249586,1.49148275,91.234,91.15,6.0]
[1643391249985,17.95148275,91.23,91.15,6.0]
[1643391250186,16.46,91.23,91.15,6.0]
[1643391250387,3.20669142,91.229,91.14,6.0]
[1643391250587,4.69817417,91.229,91.14,6.0]
[1643391250786,1.49148275,91.227,91.14,6.0]
[1643391250986,1.49148275,91.228,91.141,6.0]
[1643391251286,0.25,91.226,91.142,109.35]
[1643391251688,0.25,91.226,91.152,6.0]
[1643391251885,0.25,91.226,91.153,0.25]
[1643391252091,1.49148275,91.237,91.154,6.0]
[1643391252288,0.25,91.236,91.155,0.25]
[1643391252688,0.25,91.236,91.16,6.0]
[1643391252887,0.25,91.236,91.161,0.25]
[1643391253088,0.25,91.236,91.165,6.0]
[1643391253289,0.04351504,91.25,91.166,0.25]
[1643391253495,0.04351504,91.25,91.17,6.0]
[1643391253890,0.04351504,91.25,91.175,6.0]
[1643391254090,0.04351504,91.25,91.176,6.0]
[1643391254490,0.04351504,91.25,91.177,0.25]
[1643391255093,0.04351504,91.25,91.18,6.0]
[1643391255290,0.04351504,91.25,91.181,0.25]
[1643391255492,0.04351504,91.25,91.181,6.25]
[1643391255692,0.04351504,91.25,91.182,109.1]
[1643391255895,0.04351504,91.25,91.183,0.25]
[1643391256093,0.04351504,91.25,91.193,109.1]
[1643391256293,0.04351504,91.25,91.194,0.25]
[1643391256494,0.04351504,91.25,91.204,109.1]
[1643391256892,0.04351504,91.25,91.214,6.0]
[1643391257298,0.04351504,91.25,91.215,0.25]
[1643391257494,0.04351504,91.25,91.214,6.0]
[1643391257899,0.04351504,91.25,91.204,6.0]
[1643391258095,0.04351504,91.25,91.2,6.0]
[1643391259395,0.04351504,91.25,91.201,6.0]
[1643391261195,0.04351504,91.25,91.202,0.25]
[1643391263598,0.04351504,91.25,91.21,6.0]
[1643391264335,0.04351504,91.25,91.211,0.25]
[1643391264627,0.04351504,91.25,91.211,6.0]
[1643391264832,0.04351504,91.25,91.21,6.0]
[1643391265029,0.04351504,91.25,91.212,6.0]
[1643391265427,0.04351504,91.25,91.22,6.0]
[1643391266030,0.04351504,91.25,91.221,6.0]
[1643391266228,0.04351504,91.25,91.202,23.461]
[1643391266429,0.04351504,91.25,91.22,6.0]
[1643391266733,0.04351504,91.25,91.23,6.0]
[1643391267333,0.04351504,91.25,91.213,6.0]
[1643391267531,0.04351504,91.25,91.221,115.1]
[1643391267931,0.00351504,91.25,91.222,0.25]
[1643391268135,0.00351504,91.25,91.231,109.1]
[1643391268333,1.49148275,91.338,91.24,13.58]
[1643391268532,1.49148275,91.353,91.25,6.0]
[1643391268733,72.97486049,91.361,91.26,13.58]
[1643391269134,72.97486049,91.361,91.281,109.1]
[1643391269339,72.97486049,91.361,91.29,13.58]
[1643391269534,72.97486049,91.361,91.3,6.0]
[1643391269733,1.49148275,91.388,91.31,13.58]
[1643391269937,1.49148275,91.386,91.31,13.58]
[1643391270133,1.49148275,91.386,91.32,6.0]
[1643391270634,1.49148275,91.386,91.31,6.0]
[1643391270835,1.49148275,91.384,91.31,6.0]
[1643391271034,1.49148275,91.383,91.3,6.0]
[1643391271236,1.49148275,91.377,91.3,6.0]
[1643391271440,3.20669142,91.382,91.294,6.0]
[1643391271635,1.74148275,91.385,91.294,6.0]
[1643391271837,2.95669142,91.376,91.281,6.0]
[1643391272037,6.0,91.366,91.281,6.0]
[1643391272238,6.0,91.366,91.282,0.25]
[1643391272540,6.0,91.366,91.29,6.0]
[1643391272736,0.25,91.365,91.29,6.0]
[1643391273339,0.25,91.365,91.222,75.3506]
[1643391273340,2.95669142,91.364,91.222,75.3506]
[1643391273644,39.37372899,91.353,91.23,13.58]
[1643391274042,6.0,91.343,91.23,13.58]
[1643391274241,0.25,91.342,91.23,13.58]
[1643391274442,16.441,91.34,91.23,13.58]
[1643391274645,0.32390053,91.333,91.207,22.5257]
[1643391274842,6.0,91.33,91.207,22.5257]
[1643391275045,6.0,91.327,91.19,13.58]
[1643391275451,46.49595377,91.319,91.19,13.58]
[1643391275746,52.49595377,91.319,91.2,6.0]
[1643391275943,16.451,91.3,91.2,6.0]
[1643391276143,0.25,91.299,91.201,22.9108]
[1643391276342,43.75113917,91.289,91.211,6.0]
[1643391276743,0.25,91.288,91.212,0.25]
[1643391277343,0.25,91.288,91.211,6.0]
[1643391277945,0.25,91.288,91.212,0.25]
[1643391278646,0.25,91.288,91.211,6.0]
[1643391279650,16.45,91.28,91.211,6.0]
[1643391279850,6.25,91.279,91.201,22.9108]
[1643391280051,6.25,91.279,91.154,2.48816691]
[1643391280052,6.0,91.269,91.161,47.5385]
[1643391280249,0.25,91.268,91.161,47.5385]
[1643391280449,0.25,91.268,91.171,6.0]
[1643391280650,6.25,91.268,91.171,6.0]
[1643391281049,0.25,91.268,91.18,16.45]
[1643391281450,0.25,91.269,91.18,16.45]
[1643391282159,0.25,91.269,91.171,6.0]
[1643391282359,0.25,91.269,91.172,0.25]
[1643391283083,2.95669142,91.292,91.172,0.25]
[1643391283084,2.95669142,91.292,91.173,2.48795251]
[1643391283283,16.4346,91.295,91.18,30.03]
[1643391283483,16.4346,91.295,91.183,6.0]
[1643391283684,16.4346,91.295,91.19,6.0]
[1643391283884,1.49148275,91.288,91.191,0.25]
[1643391284084,16.4346,91.295,91.191,6.25]
[1643391284283,16.4346,91.295,91.192,47.4596]
[1643391284686,16.4346,91.295,91.202,6.0]
[1643391285787,0.25,91.288,91.202,6.0]
[1643391286188,16.45,91.28,91.202,6.0]
[1643391286393,0.25,91.279,91.203,0.25]
[1643391286890,2.95669142,91.278,91.18,13.58]
[1643391287090,2.95669142,91.278,91.19,6.0]
[1643391287295,0.25,91.277,91.191,0.25]
[1643391287491,0.25,91.277,91.191,6.25]
[1643391287691,0.25,91.277,91.191,8.73795251]
[1643391287895,4.44817417,91.314,91.192,2.48795251]
[1643391288091,4.44817417,91.314,91.202,6.0]
[1643391288292,2.95669142,91.314,91.203,0.25]
[1643391288493,1.49148275,91.312,91.206,6.0]
[1643391288893,1.49148275,91.312,91.207,0.25]
[1643391289093,16.445,91.31,91.21,16.442]
[1643391289293,1.49148275,91.315,91.212,109.1]
[1643391289496,1.49148275,91.318,91.222,6.0]
[1643391289693,1.49148275,91.32,91.222,6.0]
[1643391289893,1.49148275,91.321,91.223,0.25]
[1643391290096,16.2767,91.33,91.222,6.0]
[1643391290097,16.445,91.31,91.222,6.0]
[1643391290295,6.0,91.3,91.211,24.0236]
[1643391290501,6.0,91.3,91.18,13.58]
[1643391290698,8.95669142,91.299,91.17,13.58]
[1643391290895,1.49148275,91.289,91.16,13.58]
[1643391291098,6.0,91.279,91.17,6.0]
[1643391291498,6.0,91.274,91.169,6.0]
[1643391291897,6.0,91.271,91.17,0.25]
[1643391292098,3.20669142,91.273,91.17,0.25]
[1643391292099,16.455,91.26,91.17,0.25]
[1643391292297,41.54957709,91.259,91.17,0.25]
[1643391292497,44.75626851,91.259,91.17,0.25]
[1643391292899,41.79957709,91.259,91.164,0.25]
[1643391293403,2.95669142,91.258,91.164,0.25]
[1643391293597,2.95669142,91.258,91.164,23.2731]
[1643391293799,0.25,91.257,91.164,23.2731]
[1643391293998,0.25,91.257,91.174,6.0]
[1643391294401,2.95669142,91.256,91.174,6.0]
[1643391294599,6.0,91.246,91.174,6.0]
[1643391294998,6.0,91.24,91.164,23.2731]
[1643391295198,0.25,91.245,91.164,23.2731]
[1643391295599,6.0,91.24,91.164,23.2731]
[1643391295801,0.25,91.239,91.164,23.2731]
[1643391296800,0.25,91.249,91.164,23.2731]
[1643391297400,0.25,91.249,91.174,6.0]
[1643391297801,0.25,91.249,91.175,0.25]
[1643391298303,0.25,91.249,91.174,6.0]
[1643391298901,0.25,91.249,91.175,0.25]
[1643391299403,54.84,91.29,91.175,0.25]
[1643391299702,1.49148275,91.295,91.175,0.25]
[1643391299903,2.95669142,91.3,91.176,2.48795251]
[1643391300101,1.49148275,91.301,91.186,6.0]
[1643391300300,10.80194493,91.317,91.188,109.1]
[1643391300301,39.36539964,91.299,91.188,109.1]
[1643391300502,39.36539964,91.299,91.2,16.445]
[1643391300701,39.36539964,91.299,91.201,22.8375]
[1643391300904,0.25,91.298,91.21,6.0]
[1643391301100,0.25,91.298,91.211,6.0]
[1643391301302,0.25,91.298,91.212,0.25]
[1643391301502,22.449,91.29,91.211,6.0]
[1643391301715,1.49148275,91.284,91.187,24.1075]
[1643391302101,10.80194493,91.297,91.187,24.1075]
[1643391302102,6.0,91.274,91.187,24.1075]
[1643391302304,0.25,91.273,91.187,24.1075]
[1643391302502,3.20669142,91.273,91.187,24.1075]
[1643391302705,0.25,91.273,91.187,24.1075]
[1643391302904,2.95669142,91.272,91.187,24.1075]
[1643391303305,0.25,91.271,91.187,24.1075]
[1643391303506,0.25,91.271,91.188,0.25]
[1643391303703,2.95669142,91.27,91.188,0.25]
[1643391303904,6.0,91.274,91.197,6.0]
[1643391304103,6.0,91.272,91.197,6.0]
[1643391304305,6.0,91.272,91.198,0.25]
[1643391304503,6.0,91.273,91.198,6.25]
[1643391305103,0.25,91.272,91.198,6.25]
[1643391306404,0.25,91.272,91.2,6.0]
[1643391306605,0.25,91.272,91.208,6.0]
[1643391306807,0.25,91.272,91.209,0.25]
[1643391307607,0.25,91.272,91.212,6.0]
[1643391307808,0.25,91.276,91.213,0.25]
[1643391308209,1.49148275,91.292,91.213,0.25]
[1643391308408,1.49148275,91.295,91.214,109.1]
[1643391308613,43.38177307,91.302,91.214,109.1]
[1643391308614,1.49148275,91.298,91.224,6.0]
[1643391308810,1.49148275,91.299,91.224,6.0]
[1643391309008,1.49148275,91.294,91.225,6.0]
[1643391309408,1.49148275,91.293,91.225,6.0]
[1643391309612,4.69817417,91.293,91.225,6.0]
[1643391309809,3.20669142,91.293,91.225,6.0]
[1643391310013,2.95669142,91.292,91.225,6.0]
[1643391310412,0.25,91.291,91.225,6.0]
[1643391310712,6.0,91.285,91.19,13.58]
[1643391310913,7.49148275,91.285,91.179,1.51813512]
[1643391311213,1.49148275,91.278,91.172,1.51813512]
[1643391311615,47.93837753,91.267,91.173,0.25]
[1643391311814,16.457,91.26,91.173,0.25]
[1643391312015,6.0,91.25,91.173,0.25]
[1643391312518,0.25,91.249,91.173,0.25]
[1643391312814,0.25,91.249,91.17,0.25]
[1643391313617,0.25,91.249,91.17,6.25]
[1643391313817,0.25,91.259,91.17,6.25]
[1643391314220,16.456,91.25,91.17,6.25]
[1643391314622,0.25,91.249,91.17,22.702]
[1643391314821,1.49148275,91.265,91.171,24.9804]
[1643391315021,4.44817417,91.266,91.181,6.0]
[1643391315224,2.95669142,91.266,91.181,6.0]
[1643391315423,16.454,91.26,91.182,0.25]
[1643391315924,2.95669142,91.259,91.182,0.25]
[1643391316125,3.20669142,91.259,91.181,6.0]
[1643391316327,6.0,91.249,91.154,1.51813512]
[1643391316562,6.0,91.249,91.138,24.5673]
[1643391316563,16.461,91.23,91.164,6.0]
[1643391316762,42.07132094,91.229,91.138,24.5673]
[1643391316964,6.0,91.22,91.131,22.5215]
[1643391317160,42.32132094,91.229,91.141,6.0]
[1643391317161,6.0,91.219,91.141,6.0]
[1643391317361,6.0,91.218,91.141,6.0]
[1643391317762,16.465,91.21,91.141,6.0]
[1643391319366,2.95669142,91.227,91.141,6.0]
[1643391319965,2.95669142,91.227,91.142,6.0]
[1643391320969,16.461,91.22,91.142,6.0]
[1643391321368,0.25,91.219,91.142,6.0]
[1643391321570,3.20669142,91.219,91.142,6.0]
[1643391321771,2.95669142,91.218,91.142,6.0]
[1643391321971,2.95669142,91.218,91.113,1.51813512]
[1643391322174,109.1,91.207,91.107,1.51813512]
[1643391322373,109.1,91.207,91.061,23.7083]
[1643391322374,0.25,91.206,91.098,1.51813512]
[1643391322571,6.0,91.197,91.088,1.51813512]
[1643391322772,44.34864784,91.196,91.088,1.51813512]
[1643391322975,50.34864784,91.196,91.089,1.51813512]
[1643391323171,6.0,91.19,91.087,1.51813512]
[1643391323374,6.0,91.186,91.086,1.51813512]
[1643391323574,16.47,91.18,91.086,1.51813512]
[1643391323774,16.47,91.18,91.078,1.51813512]
[1643391323975,6.0,91.17,91.074,1.51813512]
[1643391324375,0.25,91.169,91.075,1.51813512]
[1643391324776,0.25,91.169,91.085,6.0]
[1643391324979,0.25,91.169,91.084,6.0]
[1643391325376,0.25,91.178,91.086,6.0]
[1643391325578,0.25,91.178,91.087,6.0]
[1643391326078,16.47,91.17,91.085,6.0]
[1643391326277,16.47,91.17,91.071,0.25]
[1643391326278,0.25,91.169,91.069,1.51813512]
[1643391326478,0.25,91.169,90.971,7.63999343]
[1643391326479,39.93892308,91.158,91.036,1.51813512]
[1643391326682,109.1,91.149,91.011,3.01864838]
[1643391326878,109.1,91.149,91.01,1.51813512]
[1643391326879,6.0,91.148,91.01,1.51813512]
[1643391327078,16.483,91.1,91.002,1.51813512]
[1643391327279,49.85755969,91.099,91.002,1.51813512]
[1643391327477,49.85755969,91.099,91.003,24.2538]
[1643391327900,49.85755969,91.099,91.013,6.0]
[1643391328304,49.85755969,91.099,91.014,0.25]
[1643391328499,49.85755969,91.099,91.02,6.0]
[1643391328700,0.25,91.099,91.02,6.0]
[1643391328902,6.0,91.139,91.02,6.0]
[1643391328903,1.49148275,91.19,91.021,2.73795251]
[1643391329211,16.468,91.19,91.07,54.884]
[1643391329501,16.468,91.19,91.044,1.51813512]
[1643391329702,45.54164443,91.189,91.044,1.51813512]
[1643391329902,54.928,91.16,91.041,1.51813512]
[1643391330101,54.928,91.16,91.032,24.0456]
[1643391330102,13.58,91.15,91.032,24.0456]
[1643391330302,0.25,91.149,91.032,24.0456]
[1643391330503,6.25,91.149,91.032,24.0456]
[1643391330702,42.73282776,91.119,91.032,24.0456]
[1643391330901,0.25,91.118,91.032,24.0456]
[1643391331103,6.0,91.109,91.032,24.0456]
[1643391331303,0.25,91.108,91.032,24.0456]
[1643391331503,6.25,91.108,91.032,24.0456]
[1643391331705,9.20669142,91.108,91.032,24.0456]
[1643391332204,6.25,91.108,91.032,24.0456]
[1643391332602,0.25,91.108,91.032,24.0456]
[1643391332805,2.95669142,91.122,91.033,0.25]
[1643391333008,2.95669142,91.134,91.043,109.1]
[1643391333206,54.891,91.21,91.05,13.58]
[1643391333405,54.891,91.21,91.053,6.0]
[1643391333605,19.65485611,91.208,91.06,6.0]
[1643391333806,19.65485611,91.208,91.044,70.37178578]
[1643391333807,50.85357318,91.195,91.044,24.9157]
[1643391334006,0.31658639,91.184,91.044,24.9157]
[1643391334412,13.58,91.17,91.044,24.9157]
[1643391334605,35.10440272,91.159,91.033,24.9337]
[1643391334804,13.58,91.15,91.043,6.0]
[1643391335004,6.0,91.14,91.043,6.0]
[1643391335205,6.0,91.14,91.044,2.48795251]
[1643391335609,0.25,91.158,91.044,2.48795251]
[1643391335610,0.25,91.139,91.054,6.0]
[1643391335810,0.25,91.139,91.06,16.471]
[1643391336111,0.25,91.139,91.07,6.0]
[1643391336311,0.25,91.139,91.071,0.25]
[1643391336714,35.10440272,91.159,91.071,0.25]
[1643391337114,35.10440272,91.159,91.071,6.25]
[1643391337914,35.10440272,91.159,91.072,2.48795251]
[1643391338123,0.25,91.158,91.08,6.0]
[1643391338318,0.25,91.158,91.082,6.0]